[Event "*** SCC Grand Prix: Titled Tuesday Blitz"]
[Site "Chess.com"]
[Date "2020.08.25"]
[Round "1"]
[White "Mostii"]
[Black "Fighter008"]
[Result "1/2-1/2"]
[WhiteElo "2365"]
[BlackElo "2680"]
[TimeControl "180+1"]
[EndTime "10:04:42 PDT"]
[Termination "Game drawn by repetition"]

1. d4 {[%clk 0:02:58.9]} 1... Nf6 {[%clk 0:02:59.4]} 2. Nf3 {[%clk 0:02:53]}
2... g6 {[%clk 0:03:00.3]} 3. g3 {[%clk 0:02:51.8]} 3... Bg7 {[%clk 0:02:50.8]}
4. Bg2 {[%clk 0:02:50.7]} 4... O-O {[%clk 0:02:51.4]} 5. O-O {[%clk 0:02:49.7]}
5... d6 {[%clk 0:02:52]} 6. b3 {[%clk 0:02:48.8]} 6... Nbd7 {[%clk 0:02:52.5]}
7. Bb2 {[%clk 0:02:48]} 7... a5 {[%clk 0:02:52.3]} 8. Nbd2 {[%clk 0:02:46.8]}
8... a4 {[%clk 0:02:52.2]} 9. c4 {[%clk 0:02:45.8]} 9... c5 {[%clk 0:02:48.9]}
10. d5 {[%clk 0:02:44.7]} 10... Qa5 {[%clk 0:02:48.6]} 11. Qc2 {[%clk
0:02:43.4]} 11... b6 {[%clk 0:02:44.8]} 12. e4 {[%clk 0:02:42.6]} 12... Qa7
{[%clk 0:02:43.2]} 13. e5 {[%clk 0:02:40.8]} 13... Ne8 {[%clk 0:02:39.4]} 14.
Rfe1 {[%clk 0:02:38.2]} 14... dxe5 {[%clk 0:02:33.6]} 15. Nxe5 {[%clk
0:02:36.6]} 15... Nxe5 {[%clk 0:02:33.6]} 16. Bxe5 {[%clk 0:02:35.6]} 16... Bf5
{[%clk 0:02:34.2]} 17. Qb2 {[%clk 0:02:23.9]} 17... Rd8 {[%clk 0:02:21.5]} 18.
Bxg7 {[%clk 0:02:15.8]} 18... Nxg7 {[%clk 0:02:21.5]} 19. bxa4 {[%clk
0:02:15.9]} 19... Rd6 {[%clk 0:02:20.3]} 20. Be4 {[%clk 0:02:06.3]} 20... Qxa4
{[%clk 0:02:13]} 21. Bxf5 {[%clk 0:02:00.1]} 21... Nxf5 {[%clk 0:02:12.5]} 22.
Ne4 {[%clk 0:02:01]} 22... Rdd8 {[%clk 0:02:08.7]} 23. Qxb6 {[%clk 0:01:57]}
23... Qxc4 {[%clk 0:02:08.8]} 24. Qxc5 {[%clk 0:01:48.8]} 24... Qxc5 {[%clk
0:02:08.4]} 25. Nxc5 {[%clk 0:01:49.7]} 25... Rxd5 {[%clk 0:02:08.8]} 26. Nb3
{[%clk 0:01:45.4]} 26... Ra8 {[%clk 0:02:07.2]} 27. a4 {[%clk 0:01:44.7]} 27...
Rd3 {[%clk 0:02:03.3]} 28. Reb1 {[%clk 0:01:43.9]} 28... Nd4 {[%clk 0:01:55.6]}
29. Nxd4 {[%clk 0:01:30.4]} 29... Rxd4 {[%clk 0:01:56.5]} 30. a5 {[%clk
0:01:31.2]} 30... Rd6 {[%clk 0:01:56.3]} 31. Rb5 {[%clk 0:01:29.1]} 31... Kg7
{[%clk 0:01:54.5]} 32. Kg2 {[%clk 0:01:29.4]} 32... e6 {[%clk 0:01:51.6]} 33. h4
{[%clk 0:01:29.5]} 33... h5 {[%clk 0:01:51.1]} 34. Ra4 {[%clk 0:01:26.2]} 34...
Raa6 {[%clk 0:01:50.1]} 35. Rab4 {[%clk 0:01:24.7]} 35... Rd2 {[%clk 0:01:44.9]}
36. Ra4 {[%clk 0:01:22.7]} 36... Rdd6 {[%clk 0:01:44]} 37. Rab4 {[%clk
0:01:21.9]} 37... Rd2 {[%clk 0:01:43.5]} 38. Ra4 {[%clk 0:01:21.8]} 38... Rdd6
{[%clk 0:01:39.1]} 1/2-1/2

[Event "*** SCC Grand Prix: Titled Tuesday Blitz"]
[Site "Chess.com"]
[Date "2020.08.25"]
[Round "1"]
[White "MasterKroket"]
[Black "Kobalia"]
[Result "0-1"]
[WhiteElo "2400"]
[BlackElo "2766"]
[TimeControl "180+1"]
[EndTime "10:04:45 PDT"]
[Termination "Kobalia won by resignation"]

1. d4 {[%clk 0:03:00.9]} 1... Nf6 {[%clk 0:02:59]} 2. c4 {[%clk 0:02:59.6]} 2...
g6 {[%clk 0:02:59.3]} 3. Nc3 {[%clk 0:02:59.2]} 3... Bg7 {[%clk 0:02:59]} 4. e4
{[%clk 0:02:59.1]} 4... O-O {[%clk 0:02:59.6]} 5. Nf3 {[%clk 0:02:59.1]} 5... d6
{[%clk 0:03:00]} 6. Be2 {[%clk 0:02:59.4]} 6... Nbd7 {[%clk 0:02:59.5]} 7. O-O
{[%clk 0:02:58.7]} 7... e5 {[%clk 0:02:59.7]} 8. d5 {[%clk 0:02:58.9]} 8... Nh5
{[%clk 0:02:56]} 9. b4 {[%clk 0:02:53.8]} 9... Nf4 {[%clk 0:02:53.2]} 10. Ne1
{[%clk 0:02:45.4]} 10... Nxe2+ {[%clk 0:02:50.5]} 11. Qxe2 {[%clk 0:02:43]}
11... f5 {[%clk 0:02:50.3]} 12. Nd3 {[%clk 0:02:38.6]} 12... Nf6 {[%clk
0:02:48.7]} 13. Bg5 {[%clk 0:02:35.1]} 13... Bd7 {[%clk 0:02:29.5]} 14. Rac1
{[%clk 0:02:31.2]} 14... f4 {[%clk 0:02:21.8]} 15. f3 {[%clk 0:02:19.5]} 15...
Qe8 {[%clk 0:02:19.2]} 16. c5 {[%clk 0:02:15.8]} 16... Nh5 {[%clk 0:02:15]} 17.
Nb2 {[%clk 0:02:05.5]} 17... h6 {[%clk 0:02:13.4]} 18. Bh4 {[%clk 0:02:05.8]}
18... g5 {[%clk 0:02:13.4]} 19. Bf2 {[%clk 0:02:06.4]} 19... Nf6 {[%clk
0:02:06.2]} 20. h3 {[%clk 0:02:00.2]} 20... h5 {[%clk 0:02:05.7]} 21. Nc4 {[%clk
0:01:59.7]} 21... Qe7 {[%clk 0:02:00.7]} 22. cxd6 {[%clk 0:01:57.7]} 22... cxd6
{[%clk 0:02:00.4]} 23. Na5 {[%clk 0:01:49.1]} 23... g4 {[%clk 0:01:56.1]} 24.
hxg4 {[%clk 0:01:42.6]} 24... hxg4 {[%clk 0:01:55.8]} 25. Bh4 {[%clk 0:01:41.9]}
25... g3 {[%clk 0:01:51.4]} 26. Qe1 {[%clk 0:01:19.8]} 26... Qf7 {[%clk
0:01:50.7]} 27. Nxb7 {[%clk 0:01:16.7]} 27... Qh5 {[%clk 0:01:50]} 28. Bxg3
{[%clk 0:01:17]} 28... fxg3 {[%clk 0:01:50]} 29. Qxg3 {[%clk 0:01:16.6]} 29...
Kh7 {[%clk 0:01:42.7]} 30. Nxd6 {[%clk 0:01:13.8]} 30... Bh6 {[%clk 0:01:41.7]}
31. Rce1 {[%clk 0:01:05.7]} 31... Bf4 {[%clk 0:01:41.1]} 0-1

[Event "*** SCC Grand Prix: Titled Tuesday Blitz"]
[Site "Chess.com"]
[Date "2020.08.25"]
[Round "1"]
[White "ZarinaShafigullina"]
[Black "Azatic"]
[Result "1-0"]
[WhiteElo "2287"]
[BlackElo "2586"]
[TimeControl "180+1"]
[EndTime "10:04:50 PDT"]
[Termination "ZarinaShafigullina won by resignation"]

1. d4 {[%clk 0:03:00.9]} 1... Nf6 {[%clk 0:02:58.6]} 2. Nf3 {[%clk 0:03:01.8]}
2... g6 {[%clk 0:02:58.3]} 3. g3 {[%clk 0:03:01.6]} 3... Bg7 {[%clk 0:02:58.3]}
4. Bg2 {[%clk 0:03:02.5]} 4... O-O {[%clk 0:02:58.9]} 5. O-O {[%clk 0:03:03.1]}
5... d6 {[%clk 0:02:59.3]} 6. c4 {[%clk 0:03:03.8]} 6... Nc6 {[%clk 0:02:59.1]}
7. Nc3 {[%clk 0:03:04.4]} 7... a6 {[%clk 0:02:58.4]} 8. e4 {[%clk 0:03:04.4]}
8... Bg4 {[%clk 0:02:56.2]} 9. Be3 {[%clk 0:03:03.6]} 9... Nd7 {[%clk
0:02:52.7]} 10. h3 {[%clk 0:03:02.5]} 10... Bxf3 {[%clk 0:02:52.6]} 11. Bxf3
{[%clk 0:03:02.7]} 11... e5 {[%clk 0:02:53.2]} 12. d5 {[%clk 0:03:01.7]} 12...
Nd4 {[%clk 0:02:53.5]} 13. Bg2 {[%clk 0:03:02.2]} 13... c5 {[%clk 0:02:53.5]}
14. dxc6 {[%clk 0:03:01.5]} 14... bxc6 {[%clk 0:02:53.4]} 15. b4 {[%clk
0:02:59.6]} 15... Rb8 {[%clk 0:02:34.5]} 16. a3 {[%clk 0:02:58.7]} 16... h5
{[%clk 0:02:21.1]} 17. Rb1 {[%clk 0:02:54.5]} 17... h4 {[%clk 0:02:17.5]} 18. g4
{[%clk 0:02:51.3]} 18... a5 {[%clk 0:01:52.4]} 19. f4 {[%clk 0:02:50.5]} 19...
axb4 {[%clk 0:01:51.9]} 20. axb4 {[%clk 0:02:50.3]} 20... Nb6 {[%clk 0:01:43.2]}
21. Qd3 {[%clk 0:02:47.9]} 21... Ra8 {[%clk 0:01:40.6]} 22. f5 {[%clk
0:02:46.9]} 22... Ra3 {[%clk 0:01:37.4]} 23. Kh1 {[%clk 0:02:38.7]} 23... Na4
{[%clk 0:01:33.4]} 24. Rfc1 {[%clk 0:02:38.2]} 24... c5 {[%clk 0:01:16.3]} 25.
b5 {[%clk 0:02:34.3]} 25... Bf6 {[%clk 0:01:07.7]} 26. Qd2 {[%clk 0:02:16.3]}
26... Nxc3 {[%clk 0:01:06.6]} 27. Rxc3 {[%clk 0:02:14.8]} 27... Rxc3 {[%clk
0:01:06.5]} 28. Qxc3 {[%clk 0:02:14.8]} 28... Bg5 {[%clk 0:01:06.3]} 29. Qd2
{[%clk 0:02:09.8]} 29... Bxe3 {[%clk 0:01:05.7]} 30. Qxe3 {[%clk 0:02:10.2]}
30... Qa5 {[%clk 0:01:00.2]} 31. Qh6 {[%clk 0:02:08.8]} 31... Qa2 {[%clk
0:00:57.4]} 32. Rf1 {[%clk 0:02:06.9]} 32... Qxc4 {[%clk 0:00:52.3]} 33. fxg6
{[%clk 0:02:00.3]} 33... Qxf1+ {[%clk 0:00:52.1]} 34. Bxf1 {[%clk 0:01:59.9]}
34... fxg6 {[%clk 0:00:47.8]} 35. Bc4+ {[%clk 0:01:58.9]} 1-0

[Event "*** SCC Grand Prix: Titled Tuesday Blitz"]
[Site "Chess.com"]
[Date "2020.08.25"]
[Round "1"]
[White "KaterinaMiroshnik"]
[Black "Msb2"]
[Result "0-1"]
[WhiteElo "2414"]
[BlackElo "2828"]
[TimeControl "180+1"]
[EndTime "10:04:54 PDT"]
[Termination "Msb2 won by checkmate"]

1. d3 {[%clk 0:03:00.7]} 1... d5 {[%clk 0:02:59.5]} 2. Nd2 {[%clk 0:03:01.6]}
2... Nf6 {[%clk 0:02:55.8]} 3. Ngf3 {[%clk 0:03:02.5]} 3... Bg4 {[%clk
0:02:55.4]} 4. e4 {[%clk 0:03:00.8]} 4... e6 {[%clk 0:02:55.6]} 5. Be2 {[%clk
0:03:00.3]} 5... Be7 {[%clk 0:02:49.3]} 6. O-O {[%clk 0:03:00.6]} 6... O-O
{[%clk 0:02:46.2]} 7. e5 {[%clk 0:03:00.7]} 7... Nfd7 {[%clk 0:02:46.2]} 8. d4
{[%clk 0:03:01.6]} 8... c5 {[%clk 0:02:46.4]} 9. c3 {[%clk 0:03:02]} 9... Nc6
{[%clk 0:02:46.8]} 10. h3 {[%clk 0:03:00.5]} 10... Bh5 {[%clk 0:02:47]} 11. a3
{[%clk 0:02:57.5]} 11... a5 {[%clk 0:02:40]} 12. Re1 {[%clk 0:02:57.2]} 12...
cxd4 {[%clk 0:02:33.6]} 13. cxd4 {[%clk 0:02:55.3]} 13... Qb6 {[%clk 0:02:33.3]}
14. g4 {[%clk 0:02:43.4]} 14... Bg6 {[%clk 0:02:32.5]} 15. Nb1 {[%clk
0:02:42.7]} 15... f6 {[%clk 0:02:26.9]} 16. exf6 {[%clk 0:02:34.6]} 16... Nxf6
{[%clk 0:02:27.8]} 17. Nc3 {[%clk 0:02:33.7]} 17... Ne4 {[%clk 0:02:27.6]} 18.
Be3 {[%clk 0:02:13.9]} 18... Bd6 {[%clk 0:02:14]} 19. Nb5 {[%clk 0:01:58.2]}
19... Bb8 {[%clk 0:02:11.8]} 20. Ne5 {[%clk 0:01:46.1]} 20... Be8 {[%clk
0:02:02.3]} 21. Bd3 {[%clk 0:01:31.1]} 21... Nxf2 {[%clk 0:01:49.9]} 22. Bxf2
{[%clk 0:01:30.1]} 22... Nxe5 {[%clk 0:01:49.1]} 23. dxe5 {[%clk 0:01:00.4]}
23... Qxf2+ {[%clk 0:01:47.1]} 24. Kh1 {[%clk 0:01:00.9]} 24... Rf3 {[%clk
0:01:45.9]} 25. Bf1 {[%clk 0:00:55.9]} 25... Bxb5 {[%clk 0:01:44.6]} 26. Bg2
{[%clk 0:00:54.8]} 26... Rg3 {[%clk 0:01:39.3]} 27. Rc1 {[%clk 0:00:46.6]} 27...
Qxg2# {[%clk 0:01:38.3]} 0-1

[Event "*** SCC Grand Prix: Titled Tuesday Blitz"]
[Site "Chess.com"]
[Date "2020.08.25"]
[Round "1"]
[White "CarrotsandPizza"]
[Black "Gahan-MG"]
[Result "1-0"]
[WhiteElo "2398"]
[BlackElo "2661"]
[TimeControl "180+1"]
[EndTime "10:04:58 PDT"]
[Termination "CarrotsandPizza won by resignation"]

1. e4 {[%clk 0:02:56.1]} 1... c5 {[%clk 0:02:58.8]} 2. d4 {[%clk 0:02:55.2]}
2... cxd4 {[%clk 0:02:58.6]} 3. Nf3 {[%clk 0:02:55.9]} 3... e5 {[%clk
0:02:56.8]} 4. Bc4 {[%clk 0:02:54.8]} 4... Qc7 {[%clk 0:02:48.1]} 5. Bb3 {[%clk
0:02:53.8]} 5... h6 {[%clk 0:02:45.5]} 6. c3 {[%clk 0:02:53.5]} 6... dxc3 {[%clk
0:02:43.2]} 7. Nxc3 {[%clk 0:02:54.4]} 7... Nf6 {[%clk 0:02:43.5]} 8. O-O {[%clk
0:02:53.2]} 8... Be7 {[%clk 0:02:41.5]} 9. Nd5 {[%clk 0:02:43.7]} 9... Nxd5
{[%clk 0:02:40.7]} 10. Qxd5 {[%clk 0:02:43.1]} 10... O-O {[%clk 0:02:38.4]} 11.
Nxe5 {[%clk 0:02:43.3]} 11... Qc5 {[%clk 0:02:19.2]} 12. Be3 {[%clk 0:02:05.2]}
12... Qxd5 {[%clk 0:02:17.6]} 13. Bxd5 {[%clk 0:02:01.1]} 13... d6 {[%clk
0:02:16.6]} 14. Nc4 {[%clk 0:01:52]} 14... Nc6 {[%clk 0:02:13.3]} 15. Rfd1
{[%clk 0:01:50.6]} 15... Rd8 {[%clk 0:02:11.1]} 16. Rac1 {[%clk 0:01:50.3]}
16... Be6 {[%clk 0:02:07.5]} 17. a3 {[%clk 0:01:42.3]} 17... Rac8 {[%clk
0:01:58.5]} 18. h3 {[%clk 0:01:24.1]} 18... b5 {[%clk 0:01:31.3]} 19. Nd2 {[%clk
0:01:23.9]} 19... Bxd5 {[%clk 0:01:25.7]} 20. exd5 {[%clk 0:01:23.5]} 20... Ne5
{[%clk 0:01:25.1]} 21. Bxa7 {[%clk 0:01:22.3]} 21... Nd3 {[%clk 0:01:10.3]} 22.
Rb1 {[%clk 0:01:04.3]} 22... Rc3 {[%clk 0:01:05.6]} 23. bxc3 {[%clk 0:01:03.4]}
1-0

[Event "*** SCC Grand Prix: Titled Tuesday Blitz"]
[Site "Chess.com"]
[Date "2020.08.25"]
[Round "1"]
[White "dforcen"]
[Black "KatarinaOstojic"]
[Result "1-0"]
[WhiteElo "2624"]
[BlackElo "2291"]
[TimeControl "180+1"]
[EndTime "10:04:59 PDT"]
[Termination "dforcen won by resignation"]

1. c4 {[%clk 0:02:59.8]} 1... c5 {[%clk 0:02:59.4]} 2. Nc3 {[%clk 0:02:58.9]}
2... Nc6 {[%clk 0:03:00]} 3. g3 {[%clk 0:02:56.9]} 3... g6 {[%clk 0:03:00.2]} 4.
Bg2 {[%clk 0:02:57]} 4... Bg7 {[%clk 0:03:00.8]} 5. a3 {[%clk 0:02:57.2]} 5...
e6 {[%clk 0:02:56.4]} 6. Rb1 {[%clk 0:02:56.9]} 6... a5 {[%clk 0:02:55.6]} 7. d3
{[%clk 0:02:56.7]} 7... Nge7 {[%clk 0:02:56.1]} 8. h4 {[%clk 0:02:55.1]} 8... h6
{[%clk 0:02:54.6]} 9. e4 {[%clk 0:02:54.1]} 9... O-O {[%clk 0:02:54.4]} 10. Nge2
{[%clk 0:02:54.4]} 10... Rb8 {[%clk 0:02:54.5]} 11. f4 {[%clk 0:02:45.9]} 11...
Nd4 {[%clk 0:02:54.3]} 12. h5 {[%clk 0:02:44.3]} 12... d5 {[%clk 0:02:25.9]} 13.
hxg6 {[%clk 0:02:32.6]} 13... fxg6 {[%clk 0:02:26.8]} 14. e5 {[%clk 0:02:33]}
14... dxc4 {[%clk 0:02:24]} 15. dxc4 {[%clk 0:02:32]} 15... Nec6 {[%clk
0:02:24]} 16. Be3 {[%clk 0:02:30.2]} 16... b6 {[%clk 0:02:10.2]} 17. Bxd4 {[%clk
0:01:54.4]} 17... Nxd4 {[%clk 0:02:08.5]} 18. Nxd4 {[%clk 0:01:54.4]} 18... cxd4
{[%clk 0:02:08.1]} 19. Nb5 {[%clk 0:01:53.5]} 19... Bb7 {[%clk 0:02:02.9]} 20.
Bxb7 {[%clk 0:01:50.8]} 20... Rxb7 {[%clk 0:02:02.4]} 21. Qxd4 {[%clk
0:01:51.7]} 21... Rd7 {[%clk 0:02:02.3]} 22. Qe4 {[%clk 0:01:46.3]} 22... g5
{[%clk 0:02:00.3]} 23. Nd6 {[%clk 0:01:46.7]} 23... gxf4 {[%clk 0:01:55.3]} 24.
gxf4 {[%clk 0:01:46.1]} 24... Rxd6 {[%clk 0:01:42.3]} 25. exd6 {[%clk
0:01:45.3]} 25... Qxd6 {[%clk 0:01:43.2]} 26. Rd1 {[%clk 0:01:34.3]} 26... Qc5
{[%clk 0:01:30.2]} 27. Qxe6+ {[%clk 0:01:29.2]} 27... Kh7 {[%clk 0:01:30.1]} 28.
Rd7 {[%clk 0:01:23.8]} 28... h5 {[%clk 0:01:19.9]} 29. Rd5 {[%clk 0:01:17.2]}
1-0

[Event "*** SCC Grand Prix: Titled Tuesday Blitz"]
[Site "Chess.com"]
[Date "2020.08.25"]
[Round "1"]
[White "ErikBlomqvist"]
[Black "secretsuperstar7"]
[Result "1-0"]
[WhiteElo "2513"]
[BlackElo "2161"]
[TimeControl "180+1"]
[EndTime "10:05:11 PDT"]
[Termination "ErikBlomqvist won by resignation"]

1. e4 {[%clk 0:02:59.6]} 1... c5 {[%clk 0:02:59.4]} 2. Nf3 {[%clk 0:02:58.4]}
2... d6 {[%clk 0:02:59.1]} 3. d4 {[%clk 0:02:58]} 3... cxd4 {[%clk 0:02:59.4]}
4. Qxd4 {[%clk 0:02:58.9]} 4... Nc6 {[%clk 0:02:57]} 5. Qe3 {[%clk 0:02:57.8]}
5... Nf6 {[%clk 0:02:55]} 6. Be2 {[%clk 0:02:57.6]} 6... g6 {[%clk 0:02:54.1]}
7. O-O {[%clk 0:02:57.7]} 7... Bg7 {[%clk 0:02:53.4]} 8. h3 {[%clk 0:02:58.1]}
8... O-O {[%clk 0:02:52.7]} 9. Rd1 {[%clk 0:02:56.8]} 9... Qc7 {[%clk
0:02:52.5]} 10. c4 {[%clk 0:02:51.3]} 10... a6 {[%clk 0:02:48]} 11. Nc3 {[%clk
0:02:51.4]} 11... e6 {[%clk 0:02:46.9]} 12. Bd2 {[%clk 0:02:48.8]} 12... b6
{[%clk 0:02:37]} 13. Rac1 {[%clk 0:02:48.6]} 13... Bb7 {[%clk 0:02:36.6]} 14.
Nd5 {[%clk 0:02:35.1]} 14... exd5 {[%clk 0:02:20.4]} 15. cxd5 {[%clk 0:02:36]}
15... Qd7 {[%clk 0:02:16.7]} 16. dxc6 {[%clk 0:02:32.2]} 16... Bxc6 {[%clk
0:02:16.5]} 17. Bc3 {[%clk 0:01:46.8]} 17... Nxe4 {[%clk 0:01:47.3]} 18. Bxg7
{[%clk 0:01:45]} 18... Kxg7 {[%clk 0:01:46.5]} 19. Ne5 {[%clk 0:01:40.7]} 19...
Qf5 {[%clk 0:01:31.3]} 20. Nxc6 {[%clk 0:01:38.3]} 20... Rfe8 {[%clk 0:01:30.7]}
21. Qd4+ {[%clk 0:01:24.4]} 21... Kg8 {[%clk 0:01:27.9]} 22. Bd3 {[%clk
0:01:23.7]} 22... d5 {[%clk 0:01:22.6]} 23. f3 {[%clk 0:01:18.9]} 23... Qf4
{[%clk 0:01:12.4]} 24. fxe4 {[%clk 0:01:17.7]} 24... dxe4 {[%clk 0:01:12.3]} 25.
Be2 {[%clk 0:01:14.6]} 25... Qg3 {[%clk 0:01:09.2]} 26. Rf1 {[%clk 0:01:10.6]}
26... e3 {[%clk 0:01:07.8]} 27. Rf3 {[%clk 0:01:05.4]} 27... Qg5 {[%clk
0:01:05.1]} 28. Rcf1 {[%clk 0:01:04.8]} 1-0

[Event "*** SCC Grand Prix: Titled Tuesday Blitz"]
[Site "Chess.com"]
[Date "2020.08.25"]
[Round "1"]
[White "abfchess"]
[Black "Steven_Rojas"]
[Result "0-1"]
[WhiteElo "2139"]
[BlackElo "2508"]
[TimeControl "180+1"]
[EndTime "10:05:12 PDT"]
[Termination "Steven_Rojas won by resignation"]

1. d4 {[%clk 0:03:00.3]} 1... d5 {[%clk 0:02:57.7]} 2. Nf3 {[%clk 0:02:59.9]}
2... Nf6 {[%clk 0:02:56.7]} 3. Bg5 {[%clk 0:03:00.1]} 3... Ne4 {[%clk
0:02:52.6]} 4. Bf4 {[%clk 0:02:59.7]} 4... c5 {[%clk 0:02:52.4]} 5. c3 {[%clk
0:02:59.9]} 5... Nc6 {[%clk 0:02:42.5]} 6. e3 {[%clk 0:02:59.9]} 6... Bg4 {[%clk
0:02:33.6]} 7. Be2 {[%clk 0:02:59.2]} 7... e6 {[%clk 0:02:27.3]} 8. O-O {[%clk
0:02:58.9]} 8... Bd6 {[%clk 0:02:26]} 9. Ne5 {[%clk 0:02:55.1]} 9... Bxe2 {[%clk
0:02:19.3]} 10. Qxe2 {[%clk 0:02:56]} 10... Qc7 {[%clk 0:01:52.5]} 11. f3 {[%clk
0:02:43.5]} 11... Nf6 {[%clk 0:01:46.6]} 12. Nxc6 {[%clk 0:02:37]} 12... bxc6
{[%clk 0:01:39.4]} 13. Bxd6 {[%clk 0:02:36]} 13... Qxd6 {[%clk 0:01:39.3]} 14.
Nd2 {[%clk 0:02:34.1]} 14... O-O {[%clk 0:01:36.6]} 15. Nb3 {[%clk 0:02:29.3]}
15... c4 {[%clk 0:01:18.5]} 16. Nc5 {[%clk 0:02:25.3]} 16... Nd7 {[%clk
0:01:12.6]} 17. Nxd7 {[%clk 0:02:21.8]} 17... Qxd7 {[%clk 0:01:13.5]} 18. e4
{[%clk 0:02:22.3]} 18... Rfb8 {[%clk 0:01:11.4]} 19. Rab1 {[%clk 0:02:15]} 19...
a5 {[%clk 0:01:11.4]} 20. f4 {[%clk 0:02:12.6]} 20... Rb5 {[%clk 0:00:59]} 21.
f5 {[%clk 0:02:04.2]} 21... dxe4 {[%clk 0:00:58.5]} 22. f6 {[%clk 0:02:04.3]}
22... Qd5 {[%clk 0:00:43.7]} 23. fxg7 {[%clk 0:01:59]} 23... f5 {[%clk
0:00:35.3]} 24. Qh5 {[%clk 0:01:51.3]} 24... Rb7 {[%clk 0:00:34.4]} 25. g4
{[%clk 0:01:34.1]} 25... Rxg7 {[%clk 0:00:34.2]} 26. Kh1 {[%clk 0:01:34.2]}
26... e3+ {[%clk 0:00:28.8]} 0-1

[Event "*** SCC Grand Prix: Titled Tuesday Blitz"]
[Site "Chess.com"]
[Date "2020.08.25"]
[Round "1"]
[White "praveenb2002"]
[Black "Justinz"]
[Result "1-0"]
[WhiteElo "2754"]
[BlackElo "2395"]
[TimeControl "180+1"]
[EndTime "10:05:13 PDT"]
[Termination "praveenb2002 won by resignation"]

1. d4 {[%clk 0:02:59.7]} 1... Nf6 {[%clk 0:02:58.8]} 2. c4 {[%clk 0:03:00.2]}
2... e6 {[%clk 0:02:58.3]} 3. Nc3 {[%clk 0:03:00]} 3... Bb4 {[%clk 0:02:58]} 4.
Qc2 {[%clk 0:02:59.6]} 4... O-O {[%clk 0:02:56.7]} 5. a3 {[%clk 0:02:58.5]} 5...
Bxc3+ {[%clk 0:02:56.3]} 6. Qxc3 {[%clk 0:02:59.4]} 6... Qe8 {[%clk 0:02:56.4]}
7. f3 {[%clk 0:02:55.3]} 7... d6 {[%clk 0:02:47]} 8. e4 {[%clk 0:02:53.9]} 8...
e5 {[%clk 0:02:47.3]} 9. Be3 {[%clk 0:02:50.4]} 9... Nc6 {[%clk 0:02:46.4]} 10.
Ne2 {[%clk 0:02:49.4]} 10... a5 {[%clk 0:02:46]} 11. d5 {[%clk 0:02:33.8]} 11...
Nb8 {[%clk 0:02:40.6]} 12. h4 {[%clk 0:02:34.3]} 12... Nfd7 {[%clk 0:02:29.8]}
13. g4 {[%clk 0:02:30.9]} 13... Nc5 {[%clk 0:02:29.4]} 14. h5 {[%clk 0:02:27.9]}
14... c6 {[%clk 0:02:23.3]} 15. Bxc5 {[%clk 0:02:19.6]} 15... dxc5 {[%clk
0:02:22.6]} 16. Ng3 {[%clk 0:02:20.1]} 16... Qe7 {[%clk 0:02:16.6]} 17. O-O-O
{[%clk 0:02:13.9]} 17... Rd8 {[%clk 0:02:13.5]} 18. Nf5 {[%clk 0:02:05]} 18...
Bxf5 {[%clk 0:02:10.7]} 19. gxf5 {[%clk 0:02:02.2]} 19... Nd7 {[%clk 0:02:03.9]}
20. h6 {[%clk 0:02:00.6]} 20... g6 {[%clk 0:02:03.6]} 21. fxg6 {[%clk
0:01:56.4]} 21... fxg6 {[%clk 0:02:01.3]} 22. Bh3 {[%clk 0:01:56.4]} 22... Nf6
{[%clk 0:02:01.2]} 23. Be6+ {[%clk 0:01:55.8]} 23... Kh8 {[%clk 0:02:01.3]} 24.
Qxe5 {[%clk 0:01:56]} 24... b5 {[%clk 0:01:45.8]} 25. d6 {[%clk 0:01:51.2]}
25... Qf8 {[%clk 0:01:45.7]} 26. Rh4 {[%clk 0:01:40.4]} 26... g5 {[%clk
0:01:40.2]} 27. Rh5 {[%clk 0:01:38.2]} 27... bxc4 {[%clk 0:01:33.5]} 28. Rg1
{[%clk 0:01:31]} 28... Rxd6 {[%clk 0:01:30.1]} 29. Rhxg5 {[%clk 0:01:24.3]}
29... Rxe6 {[%clk 0:01:18.6]} 30. Qxe6 {[%clk 0:01:24.3]} 30... Re8 {[%clk
0:01:13.5]} 31. Qxc6 {[%clk 0:01:07.1]} 31... Qxh6 {[%clk 0:01:11.9]} 32. Kb1
{[%clk 0:01:05.9]} 32... Qf8 {[%clk 0:01:08]} 33. Rf5 {[%clk 0:01:03.2]} 1-0

[Event "*** SCC Grand Prix: Titled Tuesday Blitz"]
[Site "Chess.com"]
[Date "2020.08.25"]
[Round "1"]
[White "Legendinunknown"]
[Black "tteshan"]
[Result "1-0"]
[WhiteElo "2666"]
[BlackElo "2334"]
[TimeControl "180+1"]
[EndTime "10:05:14 PDT"]
[Termination "Legendinunknown won by resignation"]

1. d4 {[%clk 0:03:00.9]} 1... d5 {[%clk 0:02:59.7]} 2. c4 {[%clk 0:03:00.6]}
2... dxc4 {[%clk 0:03:00.1]} 3. e4 {[%clk 0:03:00.1]} 3... e5 {[%clk 0:02:58.4]}
4. Nf3 {[%clk 0:02:59.8]} 4... Bb4+ {[%clk 0:02:49.8]} 5. Bd2 {[%clk 0:02:55]}
5... Bxd2+ {[%clk 0:02:49.5]} 6. Nbxd2 {[%clk 0:02:55.9]} 6... exd4 {[%clk
0:02:47.7]} 7. Bxc4 {[%clk 0:02:56.3]} 7... Ne7 {[%clk 0:02:41.5]} 8. O-O {[%clk
0:02:52.6]} 8... O-O {[%clk 0:02:41.5]} 9. Nb3 {[%clk 0:02:51.3]} 9... Nbc6
{[%clk 0:02:38.8]} 10. Nfxd4 {[%clk 0:02:41.2]} 10... Nxd4 {[%clk 0:02:34.7]}
11. Nxd4 {[%clk 0:02:38.6]} 11... a6 {[%clk 0:02:29.9]} 12. Rc1 {[%clk
0:02:35.2]} 12... b5 {[%clk 0:02:28.2]} 13. Bb3 {[%clk 0:02:33.8]} 13... Bb7
{[%clk 0:02:28.1]} 14. Re1 {[%clk 0:02:21.2]} 14... Qd6 {[%clk 0:02:18]} 15. Nf3
{[%clk 0:02:14.9]} 15... Qb6 {[%clk 0:02:03.3]} 16. Qd4 {[%clk 0:02:08.8]} 16...
Qxd4 {[%clk 0:01:56.2]} 17. Nxd4 {[%clk 0:02:09.7]} 17... Rfd8 {[%clk
0:01:55.6]} 18. Nf3 {[%clk 0:02:09.2]} 18... Rac8 {[%clk 0:01:51.8]} 19. Ne5
{[%clk 0:02:07.1]} 19... Rd2 {[%clk 0:01:33]} 20. Bxf7+ {[%clk 0:02:04.4]} 20...
Kf8 {[%clk 0:01:31.2]} 21. Be6 {[%clk 0:02:04.4]} 21... Rcd8 {[%clk 0:01:15.4]}
22. Rxc7 {[%clk 0:02:03.7]} 22... Bxe4 {[%clk 0:01:12.2]} 23. Nd7+ {[%clk
0:01:58.3]} 23... Ke8 {[%clk 0:01:05.5]} 24. h3 {[%clk 0:01:57]} 24... Bg6
{[%clk 0:00:48.4]} 25. Ne5 {[%clk 0:01:54.5]} 25... Rxb2 {[%clk 0:00:45.7]} 26.
Nxg6 {[%clk 0:01:53.9]} 26... Nxg6 {[%clk 0:00:39.4]} 27. Bb3+ {[%clk
0:01:46.2]} 27... Kf8 {[%clk 0:00:31.9]} 28. Rf7+ {[%clk 0:01:45.6]} 28... Kg8
{[%clk 0:00:26.1]} 29. Rd7+ {[%clk 0:01:45.2]} 1-0